fUSD/lending_fUSD_20240327
["ID","MTS","AMOUNT","RATE_DAILY","PERIOD"]
[320797799,1711561878361,-500.0,0.00054794,120]
[320797800,1711561878371,-502.0,0.00054794,120]
[320797801,1711561878381,-500.0,0.00054794,120]
[320797802,1711561878391,-500.0,0.00054794,120]
[320797803,1711561878401,-500.0,0.00054794,120]
[320797804,1711561878411,-500.0,0.00054794,120]
[320797805,1711561878422,-500.0,0.00054794,120]
[320797806,1711561878432,-407.80912159,0.00054794,120]
[320797807,1711561878442,-1000.0,0.00054794,120]
[320797808,1711561878452,-1000.0,0.00054794,120]
[320797809,1711561878463,-1000.0,0.00054794,120]
[320797810,1711561878473,-631.01,0.00054794,120]
[320797811,1711561878483,-272.35035125,0.00054794,120]
[320797812,1711561878493,-500.0,0.00054794,120]
[320797813,1711561878503,-500.0,0.00054794,120]
[320797814,1711561878515,-500.0,0.00054794,120]
[320797815,1711561878526,-500.0,0.00054794,120]
[320797816,1711561878536,-500.0,0.00054794,120]
[320797817,1711561878546,-500.0,0.00054794,120]
[320797818,1711561878556,-500.0,0.00054794,120]
[320797819,1711561878566,-500.0,0.00054794,120]
[320797820,1711561878578,-510.78353411,0.00054794,120]
[320797821,1711561878588,-500.0,0.00054794,120]
[320797822,1711561878598,-500.0,0.00054794,120]
[320797823,1711561878608,-500.0,0.00054794,120]
[320797824,1711561878618,-534.87796716,0.00054794,120]
[320797825,1711561878628,-500.0,0.00054794,120]
[320797826,1711561878638,-500.0,0.00054794,120]
[320797827,1711561878648,-500.0,0.00054794,120]
[320797828,1711561878658,-530.38,0.00054794,120]
[320797829,1711561878668,-500.0,0.00054794,120]
[320797830,1711561878678,-500.0,0.00054794,120]
[320797831,1711561878688,-500.76,0.00054794,120]
[320797832,1711561878698,-500.0,0.00054794,120]
[320797833,1711561878708,-500.0,0.00054794,120]
[320797834,1711561878718,-500.0,0.00054794,120]
[320797835,1711561878727,-500.0,0.00054794,120]
[320797836,1711561878738,-500.0,0.00054794,120]
[320797837,1711561878748,-500.0,0.00054794,120]
[320797838,1711561878759,-500.0,0.00054794,120]
[320797839,1711561878770,-249.28850583,0.00054794,120]
[320797840,1711561878781,-500.0,0.00054794,120]
[320797841,1711561878791,-500.0,0.00054794,120]
[320797842,1711561878802,-500.0,0.00054794,120]
[320797843,1711561878812,-648.9,0.00054794,120]
[320797844,1711561878822,-500.0,0.00054794,120]
[320797845,1711561878833,-500.0,0.00054794,120]
[320797846,1711561878843,-517.87,0.00054794,120]
[320797847,1711561878855,-500.0,0.00054794,120]
[320797848,1711561878865,-500.0,0.00054794,120]
[320797849,1711561878878,-500.0,0.00054794,120]
[320797850,1711561878888,-500.0,0.00054794,120]
[320797851,1711561878898,-736.48,0.00054794,120]
[320797852,1711561878959,-500.0,0.00054794,120]
[320797853,1711561878969,-511.86320981,0.00054794,120]
[320797854,1711561878979,-500.0,0.00054794,120]
[320797855,1711561878989,-500.0,0.00054794,120]
[320797856,1711561878999,-500.0,0.00054794,120]
[320797857,1711561879009,-500.0,0.00054794,120]
[320797858,1711561879019,-500.0,0.00054794,120]
[320797859,1711561879028,-500.0,0.00054794,120]
[320797860,1711561879038,-500.0,0.00054794,120]
[320797861,1711561879048,-500.0,0.00054794,120]
[320797862,1711561879057,-1149.15,0.00054794,120]
[320797863,1711561879067,-683.71,0.00054794,120]
[320797864,1711561879076,-500.0,0.00054794,120]
[320797865,1711561879087,-500.0,0.00054794,120]
[320797866,1711561879097,-588.63,0.00054794,120]
[320797867,1711561879106,-500.0,0.00054794,120]
[320797868,1711561879116,-1653.05,0.00054794,120]
[320797869,1711561879126,-721.85,0.00054794,120]
[320797870,1711561879135,-758.1,0.00054794,120]
[320797871,1711561879146,-751.34,0.00054794,120]
[320797872,1711561879156,-500.0,0.00054794,120]
[320797873,1711561879165,-500.0,0.00054794,120]
[320797874,1711561879175,-500.0,0.00054794,120]
[320797875,1711561879185,-500.0,0.00054794,120]
[320797876,1711561879194,-500.0,0.00054794,120]
[320797877,1711561879204,-1106.66,0.00054794,120]
[320797878,1711561879214,-500.0,0.00054794,120]
[320797879,1711561879224,-667.72,0.00054794,120]
[320797880,1711561879234,-500.0,0.00054794,120]
[320797881,1711561879243,-546.53,0.00054794,120]
[320797882,1711561879254,-525.52,0.00054794,120]
[320797883,1711561879264,-151.0,0.00054794,30]
[320797884,1711561879274,-500.0,0.00054794,120]
[320797885,1711561879284,-500.0,0.00054794,120]
[320797886,1711561879293,-1650.28,0.00054794,120]
[320797887,1711561879303,-1208.64,0.00054794,120]
[320797888,1711561879313,-500.0,0.00054794,120]
[320797889,1711561879323,-500.0,0.00054794,120]
[320797890,1711561879335,-500.0,0.00054794,120]
[320797891,1711561879345,-500.0,0.00054794,120]
[320797892,1711561879355,-1675.07,0.00054794,120]
[320797893,1711561879365,-500.0,0.00054794,120]
[320797894,1711561879374,-500.0,0.00054794,120]
[320797895,1711561879384,-500.0,0.00054794,120]
[320797896,1711561879393,-500.0,0.00054794,120]
[320797897,1711561879403,-500.0,0.00054794,120]
[320797898,1711561879413,-500.0,0.00054794,60]
[320797899,1711561879423,-875.05,0.00054794,120]
[320797900,1711561879432,-500.0,0.00054794,120]
[320797901,1711561879442,-500.0,0.00054794,120]
[320797902,1711561879452,-500.0,0.00054794,120]
[320797903,1711561879461,-500.0,0.00054794,120]
[320797904,1711561879471,-500.0,0.00054794,120]
[320797905,1711561879481,-896.37,0.00054794,120]
[320797906,1711561879491,-526.04,0.00054794,120]
[320797907,1711561879501,-500.0,0.00054794,120]
[320797908,1711561879510,-774.53,0.00054794,120]
[320797909,1711561879521,-623.96,0.00054794,120]
[320797910,1711561879531,-151.0,0.00054794,120]
[320797911,1711561879540,-500.0,0.00054794,120]
[320797912,1711561879551,-1500.57,0.00054794,120]
[320797913,1711561879561,-500.0,0.00054794,120]
[320797914,1711561879572,-500.0,0.00054794,120]
[320797915,1711561879585,-500.0,0.00054794,120]
[320797916,1711561879595,-1293.46,0.00054794,120]
[320797917,1711561879605,-663.1,0.00054794,120]
[320797918,1711561879615,-500.0,0.00054794,120]
[320797919,1711561879625,-500.0,0.00054794,120]
[320797920,1711561879636,-500.0,0.00054794,120]
[320797921,1711561879646,-591.57,0.00054794,120]
[320797922,1711561879656,-540.2,0.00054794,120]
[320797923,1711561879666,-500.0,0.00054794,120]
[320797924,1711561879677,-500.0,0.00054794,120]
[320797925,1711561879688,-500.0,0.00054794,120]
[320797926,1711561879698,-826.04,0.00054794,120]
[320797927,1711561879709,-802.7,0.00054794,120]
[320797928,1711561879719,-500.0,0.00054794,120]
[320797929,1711561879729,-500.0,0.00054794,120]
[320797930,1711561879740,-792.47,0.00054794,120]
[320797931,1711561879750,-551.8,0.00054794,120]
[320797932,1711561879761,-500.0,0.00054794,120]
[320797933,1711561879771,-507.03,0.00054794,120]
[320797934,1711561879781,-814.62,0.00054794,120]
[320797935,1711561879791,-500.0,0.00054794,120]
[320797936,1711561879801,-500.0,0.00054794,120]
[320797937,1711561879812,-500.0,0.00054794,120]
[320797938,1711561879821,-519.12,0.00054794,120]
[320797939,1711561879835,-500.0,0.00054794,120]
[320797940,1711561879844,-500.0,0.00054794,120]
[320797941,1711561879856,-500.0,0.00054794,120]
[320797942,1711561879867,-500.0,0.00054794,120]
[320797943,1711561879877,-553.94,0.00054794,120]
[320797944,1711561879887,-1363.26,0.00054794,120]
[320797945,1711561879898,-1247.0,0.00054794,120]
[320797946,1711561879907,-681.15,0.00054794,120]
[320797947,1711561879917,-500.0,0.00054794,120]
[320797948,1711561879926,-828.0,0.00054794,120]
[320797949,1711561879936,-498.035465,0.00054794,120]
[320797950,1711561879946,-500.0,0.00054794,120]
[320797951,1711561879955,-907.95,0.00054794,120]
[320797952,1711561879966,-691.03,0.00054794,120]
[320797953,1711561879975,-500.0,0.00054794,120]
[320797954,1711561879984,-500.0,0.00054794,120]
[320797955,1711561879993,-621.56,0.00054794,120]
[320797956,1711561880003,-500.0,0.00054794,120]
[320797957,1711561880013,-500.0,0.00054794,120]
[320797958,1711561880023,-1943.45,0.00054794,120]
[320797959,1711561880033,-1363.72,0.00054794,120]
[320797960,1711561880044,-204.288628,0.00054794,120]
[320797961,1711561880054,-500.0,0.00054794,120]
[320797962,1711561880064,-500.0,0.00054794,120]
[320797963,1711561880074,-204.288628,0.00054794,120]
[320797964,1711561880087,-500.0,0.00054794,120]
[320797965,1711561880096,-1264.66,0.00054794,120]
[320797966,1711561880107,-500.0,0.00054794,120]
[320797967,1711561880117,-518.11,0.00054794,120]
[320797968,1711561880127,-500.0,0.00054794,120]
[320797969,1711561880136,-500.0,0.00054794,120]
[320797970,1711561880147,-785.6,0.00054794,120]
[320797971,1711561880156,-500.0,0.00054794,120]
[320797972,1711561880167,-500.0,0.00054794,120]
[320797973,1711561880176,-500.0,0.00054794,120]
[320797974,1711561880186,-533.96,0.00054794,120]
[320797975,1711561880195,-610.76,0.00054794,120]
[320797976,1711561880204,-500.0,0.00054794,120]
[320797977,1711561880214,-500.0,0.00054794,120]
[320797978,1711561880224,-500.0,0.00054794,120]
[320797979,1711561880234,-500.0,0.00054794,120]
[320797980,1711561880244,-619.35,0.00054794,120]
[320797981,1711561880254,-601.27,0.00054794,120]
[320797982,1711561880264,-500.0,0.00054794,120]
[320797983,1711561880275,-500.0,0.00054794,120]
[320797984,1711561880284,-723.32,0.00054794,120]
[320797985,1711561880294,-658.94,0.00054794,30]
[320797986,1711561880304,-604.53,0.00054794,120]
[320797987,1711561880314,-500.0,0.00054794,120]
[320797988,1711561880324,-500.0,0.00054794,120]
[320797989,1711561880337,-627.6,0.00054794,120]
[320797990,1711561880348,-500.0,0.00054794,120]
[320797991,1711561880358,-541.49,0.00054794,120]
[320797992,1711561880368,-500.0,0.00054794,120]
[320797993,1711561880378,-525.41,0.00054794,120]
[320797994,1711561880388,-500.0,0.00054794,120]
[320797995,1711561880398,-1259.13,0.00054794,120]
[320797996,1711561880409,-500.0,0.00054794,120]
[320797997,1711561880419,-500.0,0.00054794,120]
[320797998,1711561880430,-500.0,0.00054794,120]
[320797999,1711561880441,-500.0,0.00054794,120]
[320798000,1711561880452,-500.0,0.00054794,120]
[320798001,1711561880462,-500.0,0.00054794,120]
[320798002,1711561880472,-1285.86,0.00054794,120]
[320798003,1711561880482,-1118.41,0.00054794,120]
[320798004,1711561880492,-961.87,0.00054794,120]
[320798005,1711561880503,-500.0,0.00054794,120]
[320798006,1711561880513,-500.0,0.00054794,120]
[320798007,1711561880524,-500.0,0.00054794,120]
[320798008,1711561880535,-500.0,0.00054794,120]
[320798009,1711561880546,-437.56,0.00054794,120]
[320798010,1711561880556,-653.33,0.00054794,120]
[320798011,1711561880567,-500.0,0.00054794,120]
[320798012,1711561880580,-500.0,0.00054794,120]
[320798013,1711561880591,-515.61,0.00054794,120]
[320798014,1711561880603,-500.0,0.00054794,120]
[320798015,1711561880614,-500.0,0.00054794,120]
[320798016,1711561880624,-500.0,0.00054794,120]
[320798017,1711561880635,-881.34,0.00054794,120]
[320798018,1711561880646,-594.96,0.00054794,120]
[320798019,1711561880657,-500.0,0.00054794,120]
[320798020,1711561880667,-500.0,0.00054794,120]
[320798021,1711561880678,-635.55,0.00054794,120]
[320798022,1711561880689,-500.0,0.00054794,120]
[320798023,1711561880700,-500.0,0.00054794,120]
[320798024,1711561880710,-500.0,0.00054794,120]
[320798025,1711561880720,-500.0,0.00054794,120]
[320798026,1711561880734,-569.07,0.00054794,120]
[320798027,1711561880748,-507.05,0.00054794,120]
[320798028,1711561880758,-513.81,0.00054794,120]
[320798029,1711561880768,-885.2,0.00054794,120]
[320798030,1711561880779,-500.0,0.00054794,120]
[320798031,1711561880789,-500.0,0.00054794,120]
[320798032,1711561880800,-500.0,0.00054794,7]
[320798033,1711561880809,-500.0,0.00054794,120]
[320798034,1711561880820,-345.9,0.00054794,120]
[320798035,1711561880832,-500.0,0.00054794,120]
[320798036,1711561880843,-969.37,0.00054794,120]
[320798037,1711561880855,-500.0,0.00054794,120]
[320798038,1711561880866,-500.0,0.00054794,120]
[320798039,1711561880879,-500.0,0.00054794,120]
[320798040,1711561880890,-500.0,0.00054794,120]
[320798041,1711561880901,-500.0,0.00054794,120]
[320798042,1711561880912,-712.96,0.00054794,120]
[320798043,1711561880924,-500.0,0.00054794,120]
[320798044,1711561880939,-500.0,0.00054794,120]
[320798045,1711561880950,-500.0,0.00054794,120]
[320798046,1711561880961,-500.0,0.00054794,120]
[320798047,1711561880971,-500.0,0.00054794,120]
[320798048,1711561880982,-500.0,0.00054794,120]
[320798049,1711561880992,-607.67,0.00054794,120]
[320798050,1711561881002,-500.0,0.00054794,120]
[320798051,1711561881012,-500.0,0.00054794,120]
[320798052,1711561881023,-500.0,0.00054794,120]
[320798053,1711561881033,-500.0,0.00054794,120]
[320798054,1711561881043,-500.0,0.00054794,120]
[320798055,1711561881054,-631.34,0.00054794,120]
[320798056,1711561881064,-500.0,0.00054794,120]
[320798057,1711561881074,-572.09,0.00054794,120]
[320798058,1711561881089,-500.0,0.00054794,120]
[320798059,1711561881100,-633.56,0.00054794,120]
[320798060,1711561881111,-1276.08,0.00054794,120]
[320798061,1711561881121,-500.0,0.00054794,120]
[320798062,1711561881131,-302.296389,0.00054794,120]
[320798063,1711561881141,-500.0,0.00054794,120]
[320798064,1711561881152,-433.98,0.00054794,120]
[320798065,1711561881162,-302.296389,0.00054794,120]
[320798066,1711561881173,-265.100208,0.00054794,120]
[320798067,1711561881183,-743.04,0.00054794,120]
[320798068,1711561881193,-500.0,0.00054794,120]
[320798069,1711561881203,-500.0,0.00054794,120]
[320798070,1711561881214,-500.0,0.00054794,120]
[320798071,1711561881224,-500.0,0.00054794,120]
[320798072,1711561881234,-500.0,0.00054794,120]
[320798073,1711561881245,-500.0,0.00054794,120]
[320798074,1711561881256,-500.0,0.00054794,120]
[320798075,1711561881266,-994.38,0.00054794,120]
[320798076,1711561881276,-500.0,0.00054794,120]
[320798077,1711561881287,-1464.37,0.00054794,120]
[320798078,1711561881297,-500.0,0.00054794,120]
[320798079,1711561881308,-500.0,0.00054794,120]
[320798080,1711561881318,-151.0,0.00054794,120]
[320798081,1711561881330,-500.0,0.00054794,120]
[320798082,1711561881341,-500.0,0.00054794,120]
[320798083,1711561881351,-1308.17,0.00054794,120]
[320798084,1711561881362,-576.79,0.00054794,120]
[320798085,1711561881371,-500.0,0.00054794,120]
[320798086,1711561881382,-500.0,0.00054794,120]
[320798087,1711561881392,-573.32,0.00054794,120]
[320798088,1711561881402,-500.0,0.00054794,120]
[320798089,1711561881413,-500.0,0.00054794,120]
[320798090,1711561881424,-500.0,0.00054794,120]
[320798091,1711561881434,-500.0,0.00054794,120]
[320798092,1711561881445,-500.0,0.00054794,120]
[320798093,1711561881456,-1966.83,0.00054794,120]
[320798094,1711561881466,-500.0,0.00054794,120]
[320798095,1711561881477,-882.23,0.00054794,120]
[320798096,1711561881487,-1167.58,0.00054794,120]
[320798097,1711561881498,-500.0,0.00054794,120]
[320798098,1711561881509,-500.0,0.00054794,120]
[320798099,1711561881520,-939.99,0.00054794,120]
[320798100,1711561881532,-500.0,0.00054794,120]
[320798101,1711561881544,-1012.01857109,0.00054794,120]
[320798102,1711561881554,-1680.42,0.00054794,120]
[320798103,1711561881565,-500.0,0.00054794,120]
[320798104,1711561881575,-500.0,0.00054794,120]
[320798105,1711561881588,-654.45,0.00054794,120]
[320798106,1711561881599,-500.0,0.00054794,120]
[320798107,1711561881609,-1090.78,0.00054794,120]
[320798108,1711561881619,-500.0,0.00054794,120]
[320798109,1711561881629,-500.0,0.00054794,120]
[320798110,1711561881640,-5693.99,0.00054794,120]
[320798111,1711561881651,-2767.8,0.00054794,120]
[320798112,1711561881661,-500.0,0.00054794,120]
[320798113,1711561881671,-631.11,0.00054794,120]
[320798114,1711561881682,-151.0,0.00054794,120]
[320798115,1711561881693,-500.0,0.00054794,120]
[320798116,1711561881704,-524.09694199,0.00054794,120]
[320798117,1711561881715,-500.0,0.00054794,120]
[320798118,1711561881725,-638.94,0.00054794,120]
[320798119,1711561881736,-500.0,0.00054794,120]
[320798120,1711561881747,-500.0,0.00054794,120]
[320798121,1711561881758,-3576.66,0.00054794,120]
[320798122,1711561881769,-1880.06,0.00054794,120]
[320798123,1711561881780,-597.69,0.00054794,120]
[320798124,1711561881790,-1154.81,0.00054794,120]
[320798125,1711561881801,-500.0,0.00054794,120]
[320798126,1711561881812,-11680.99,0.00054794,120]
[320798127,1711561881823,-1513.74,0.00054794,120]
[320798128,1711561881834,-500.0,0.00054794,120]
[320798129,1711561881845,-500.0,0.00054794,120]
[320798130,1711561881858,-500.0,0.00054794,120]
[320798131,1711561881868,-500.0,0.00054794,120]
[320798132,1711561881880,-4891.01,0.00054794,120]
[320798133,1711561881893,-500.0,0.00054794,120]
[320798134,1711561881904,-820.32,0.00054794,120]
[320798135,1711561881915,-2266.19,0.00054794,120]
[320798136,1711561881925,-611.06,0.00054794,120]
[320798137,1711561881936,-4319.88,0.00054794,120]
[320798138,1711561881947,-638.01,0.00054794,120]
[320798139,1711561881957,-500.0,0.00054794,120]
[320798140,1711561881968,-500.0,0.00054794,120]
[320798141,1711561881978,-1948.43,0.00054794,120]
[320798142,1711561881989,-594.89,0.00054794,120]
[320798143,1711561881999,-58191.63,0.00054794,120]
[320798144,1711561882011,-4872.06,0.00054794,120]
[320798145,1711561882021,-500.0,0.00054794,120]
[320798146,1711561882032,-500.0,0.00054794,120]
[320798147,1711561882043,-500.0,0.00054794,120]
[320798148,1711561882053,-916.42,0.00054794,120]
[320798149,1711561882065,-25819.15,0.00054794,120]
[320798150,1711561882075,-500.0,0.00054794,120]
[320798151,1711561882087,-672.12,0.00054794,120]
[320798152,1711561882097,-500.0,0.00054794,120]
[320798153,1711561882107,-500.0,0.00054794,120]
[320798154,1711561882117,-2822.64,0.00054794,120]
[320798155,1711561882128,-5739.01,0.00054794,120]
[320798156,1711561882138,-1773.91,0.00054794,120]
[320798157,1711561882148,-1599.36,0.00054794,120]
[320798158,1711561882158,-7896.21,0.00054794,120]
[320798159,1711561882168,-500.0,0.00054794,120]
[320798160,1711561882178,-500.0,0.00054794,120]
[320798161,1711561882188,-580.5,0.00054794,120]
[320798162,1711561882197,-500.0,0.00054794,120]
[320798163,1711561882208,-500.0,0.00054794,120]
[320798164,1711561882218,-500.0,0.00054794,120]
[320798165,1711561882228,-406.27527937,0.00054794,120]
[320798166,1711561882238,-702.31,0.00054794,120]
[320798167,1711561882248,-962.02,0.00054794,120]
[320798168,1711561882258,-4077.6,0.00054794,120]
[320798169,1711561882268,-500.0,0.00054794,120]
[320798170,1711561882278,-1910.86,0.00054794,120]
[320798171,1711561882288,-500.0,0.00054794,120]
[320798172,1711561882298,-993.68,0.00054794,120]
[320798173,1711561882307,-1981.61,0.00054794,120]
[320798174,1711561882317,-1310.9,0.00054794,120]
[320798175,1711561882326,-151.0,0.00054794,120]
[320798176,1711561882338,-5861.79,0.00054794,120]
[320798177,1711561882347,-500.0,0.00054794,120]
[320798178,1711561882357,-499.0,0.00054794,120]
[320798179,1711561882367,-500.0,0.00054794,120]
[320798180,1711561882377,-861.74,0.00054794,120]
[320798181,1711561882386,-3868.28,0.00054794,120]
[320798182,1711561882396,-500.0,0.00054794,120]
[320798183,1711561882406,-4602.46,0.00054794,120]
[320798184,1711561882416,-500.0,0.00054794,120]
[320798185,1711561882425,-500.0,0.00054794,120]
[320798186,1711561882435,-2663.41,0.00054794,120]
[320798187,1711561882445,-2285.5,0.00054794,120]
[320798188,1711561882455,-7201.79,0.00054794,120]
[320798189,1711561882465,-1041.92,0.00054794,120]
[320798190,1711561882475,-2054.16,0.00054794,120]
[320798191,1711561882484,-500.0,0.00054794,120]
[320798192,1711561882494,-500.0,0.00054794,120]
[320798193,1711561882504,-500.0,0.00054794,120]
[320798194,1711561882514,-1431.94,0.00054794,120]
[320798195,1711561882526,-500.0,0.00054794,120]
[320798196,1711561882536,-500.0,0.00054794,120]
[320798197,1711561882547,-18909.02,0.00054794,120]
[320798198,1711561882558,-1528.43,0.00054794,120]
[320798199,1711561882567,-1715.09,0.00054794,120]
[320798200,1711561882579,-543.42,0.00054794,120]
[320798201,1711561882590,-500.0,0.00054794,120]
[320798202,1711561882600,-836.18,0.00054794,120]
[320798203,1711561882611,-500.0,0.00054794,120]
[320798204,1711561882620,-2529.3,0.00054794,120]
[320798205,1711561882631,-1204.05,0.00054794,120]
[320798206,1711561882641,-500.0,0.00054794,120]
[320798207,1711561882651,-500.0,0.00054794,120]
[320798208,1711561882661,-500.0,0.00054794,120]
[320798209,1711561882671,-1890.07,0.00054794,120]
[320798210,1711561882680,-882.15,0.00054794,120]
[320798211,1711561882691,-1395.77,0.00054794,120]
[320798212,1711561882936,-500.0,0.00054794,120]
[320798213,1711561882957,-500.0,0.00054794,120]
[320798214,1711561882968,-500.0,0.00054794,120]
[320798215,1711561882977,-500.0,0.00054794,120]
[320798216,1711561882987,-500.0,0.00054794,120]
[320798217,1711561882996,-22066.4,0.00054794,120]
[320798218,1711561883006,-3276.54,0.00054794,120]
[320798219,1711561883015,-9133.29,0.00054794,120]
[320798220,1711561883025,-500.0,0.00054794,120]
[320798221,1711561883034,-3779.21,0.00054794,120]
[320798222,1711561883044,-500.0,0.00054794,120]
[320798223,1711561883053,-505.39,0.00054794,120]
[320798224,1711561883062,-1407.53,0.00054794,120]
[320798225,1711561883072,-500.0,0.00054794,120]
[320798226,1711561883082,-500.0,0.00054794,120]
[320798227,1711561883092,-500.0,0.00054794,120]
[320798228,1711561883101,-1780.21,0.00054794,120]
[320798229,1711561883111,-744.71,0.00054794,120]
[320798230,1711561883120,-3375.62,0.00054794,120]
[320798231,1711561883129,-500.0,0.00054794,120]
[320798232,1711561883138,-1245.33,0.00054794,120]
[320798233,1711561883148,-866.75,0.00054794,120]
[320798234,1711561883158,-825.22,0.00054794,120]
[320798235,1711561883166,-500.0,0.00054794,120]
[320798236,1711561883176,-500.0,0.00054794,120]
[320798237,1711561883185,-500.0,0.00054794,120]
[320798238,1711561883195,-2499.0,0.00054794,120]
[320798239,1711561883204,-1139.82,0.00054794,120]
[320798240,1711561883213,-3390.46,0.00054794,120]
[320798241,1711561883222,-500.0,0.00054794,120]
[320798242,1711561883232,-500.0,0.00054794,120]
[320798243,1711561883241,-500.0,0.00054794,120]
[320798244,1711561883251,-2297.82,0.00054794,120]
[320798245,1711561883260,-2115.9,0.00054794,120]
[320798246,1711561883270,-36215.98,0.00054794,120]
[320798247,1711561883279,-500.0,0.00054794,120]
[320798248,1711561883289,-504.0,0.00054794,120]
[320798249,1711561883299,-500.0,0.00054794,120]
[320798250,1711561883309,-635.43,0.00054794,120]
[320798251,1711561883318,-509.72,0.00054794,7]
[320798252,1711561883328,-1985.21,0.00054794,120]
[320798253,1711561883338,-500.0,0.00054794,120]
[320798254,1711561883347,-4093.44,0.00054794,120]
[320798255,1711561883356,-598.33,0.00054794,120]
[320798256,1711561883365,-479.754063,0.00054794,120]
[320798257,1711561883374,-500.0,0.00054794,120]
[320798258,1711561883383,-3703.02,0.00054794,120]
[320798259,1711561883393,-3170.6,0.00054794,120]
[320798260,1711561883402,-4518.78,0.00054794,120]
[320798261,1711561883413,-479.754063,0.00054794,120]
[320798262,1711561883423,-500.0,0.00054794,120]
[320798263,1711561883432,-816.34,0.00054794,120]
[320798264,1711561883443,-500.0,0.00054794,120]
[320798265,1711561883453,-666.0,0.00054794,120]
[320798266,1711561883463,-550.58,0.00054794,120]
[320798267,1711561883472,-5597.96,0.00054794,120]
[320798268,1711561883482,-500.0,0.00054794,2]
[320798269,1711561883492,-500.0,0.00054794,120]
[320798270,1711561883501,-3365.42,0.00054794,120]
[320798271,1711561883510,-1850.45,0.00054794,120]
[320798272,1711561883520,-500.0,0.00054794,120]
[320798273,1711561883530,-543.16,0.00054794,120]
[320798274,1711561883539,-500.0,0.00054794,120]
[320798275,1711561883549,-1437.25,0.00054794,120]
[320798276,1711561883559,-500.0,0.00054794,120]
[320798277,1711561883568,-500.0,0.00054794,120]
[320798278,1711561883578,-13261.96,0.00054794,120]
[320798279,1711561883589,-500.0,0.00054794,120]
[320798280,1711561883599,-500.0,0.00054794,120]
[320798281,1711561883609,-500.0,0.00054794,120]
[320798282,1711561883618,-1655.41,0.00054794,120]
[320798283,1711561883628,-2460.7,0.00054794,120]
[320798284,1711561883639,-1308.22,0.00054794,120]
[320798285,1711561883649,-688.55,0.00054794,120]
[320798286,1711561883659,-500.0,0.00054794,120]
[320798287,1711561883669,-500.0,0.00054794,120]
[320798288,1711561883679,-500.0,0.00054794,120]
[320798289,1711561883688,-500.0,0.00054794,120]
[320798290,1711561883698,-606.26,0.00054794,120]
[320798291,1711561883707,-3292.56,0.00054794,120]
[320798292,1711561883717,-4771.81,0.00054794,120]
[320798293,1711561883728,-1591.58,0.00054794,120]
[320798294,1711561883738,-2911.12,0.00054794,120]
[320798295,1711561883748,-8314.67,0.00054794,21]
[320798296,1711561883757,-500.0,0.00054794,120]
[320798297,1711561883767,-515.6,0.00054794,120]
[320798298,1711561883777,-1246.89,0.00054794,120]